[Event "*** Titled Tuesday Blitz"]
[Site "Chess.com"]
[Date "2021.03.09"]
[Round "1"]
[White "zacachess"]
[Black "JiiHart"]
[Result "1-0"]
[WhiteElo "2501"]
[BlackElo "2062"]
[TimeControl "180+1"]
[EndTime "10:07:20 PST"]
[Termination "zacachess won by resignation"]

1. e4 {[%clk 0:03:00.5]} 1... e5 {[%clk 0:02:59.3]} 2. Nf3 {[%clk 0:03:00.2]}
2... Nc6 {[%clk 0:02:59.5]} 3. d4 {[%clk 0:03:00.6]} 3... exd4 {[%clk 0:02:59]}
4. Nxd4 {[%clk 0:03:01.5]} 4... Bc5 {[%clk 0:02:58.4]} 5. Be3 {[%clk 0:03:00.7]}
5... Qf6 {[%clk 0:02:57.7]} 6. c3 {[%clk 0:03:00.7]} 6... Nge7 {[%clk
0:02:57.5]} 7. g3 {[%clk 0:03:00.8]} 7... Bb6 {[%clk 0:02:46.9]} 8. Bg2 {[%clk
0:03:00.7]} 8... d6 {[%clk 0:02:47.2]} 9. O-O {[%clk 0:03:00.4]} 9... O-O {[%clk
0:02:44.7]} 10. Na3 {[%clk 0:03:00.3]} 10... a6 {[%clk 0:02:39.8]} 11. Nxc6
{[%clk 0:02:45.5]} 11... bxc6 {[%clk 0:02:32.7]} 12. Bxb6 {[%clk 0:02:42.6]}
12... cxb6 {[%clk 0:02:29.6]} 13. Nc4 {[%clk 0:02:42.6]} 13... b5 {[%clk
0:02:15.2]} 14. Nxd6 {[%clk 0:02:04.1]} 14... Rd8 {[%clk 0:02:09.8]} 15. e5
{[%clk 0:02:04.3]} 15... Qxe5 {[%clk 0:02:08.4]} 16. Nxf7 {[%clk 0:02:04.4]}
16... Rxd1 {[%clk 0:02:03.4]} 17. Nxe5 {[%clk 0:02:04.3]} 17... Rxa1 {[%clk
0:01:59.2]} 18. Rxa1 {[%clk 0:02:03.3]} 18... Bb7 {[%clk 0:01:58.3]} 19. Rd1
{[%clk 0:02:00.9]} 19... Nd5 {[%clk 0:01:46.1]} 20. Nd7 {[%clk 0:01:38]} 20...
Rd8 {[%clk 0:01:33.5]} 21. Nc5 {[%clk 0:01:37.2]} 21... Bc8 {[%clk 0:01:15]} 22.
Nb3 {[%clk 0:01:02.3]} 22... Rd7 {[%clk 0:01:00.9]} 23. Na5 {[%clk 0:00:58.4]}
23... Ne7 {[%clk 0:00:41.7]} 24. Rxd7 {[%clk 0:00:57.9]} 24... Bxd7 {[%clk
0:00:42.3]} 25. f4 {[%clk 0:00:58.4]} 25... Kf7 {[%clk 0:00:42]} 26. Kf2 {[%clk
0:00:57.9]} 26... Ke6 {[%clk 0:00:38.3]} 27. Nb7 {[%clk 0:00:56.3]} 27... Nf5
{[%clk 0:00:29.4]} 28. Nc5+ {[%clk 0:00:55.6]} 28... Kd6 {[%clk 0:00:27.9]} 29.
Nxd7 {[%clk 0:00:53]} 29... Kxd7 {[%clk 0:00:26.9]} 30. Bh3 {[%clk 0:00:53.6]}
30... g6 {[%clk 0:00:26.3]} 31. Bxf5+ {[%clk 0:00:50.9]} 31... gxf5 {[%clk
0:00:26.5]} 32. Ke3 {[%clk 0:00:46.9]} 32... c5 {[%clk 0:00:26.4]} 33. h3 {[%clk
0:00:43.8]} 33... Kd6 {[%clk 0:00:26.3]} 34. g4 {[%clk 0:00:43.2]} 34... fxg4
{[%clk 0:00:24.9]} 35. hxg4 {[%clk 0:00:43.1]} 35... Kd5 {[%clk 0:00:24.3]} 36.
g5 {[%clk 0:00:39.6]} 36... c4 {[%clk 0:00:23]} 37. Kf3 {[%clk 0:00:38.4]} 37...
a5 {[%clk 0:00:21.7]} 38. Kg4 {[%clk 0:00:36.5]} 38... b4 {[%clk 0:00:21.3]} 39.
f5 {[%clk 0:00:30.9]} 39... a4 {[%clk 0:00:20.4]} 40. a3 {[%clk 0:00:30.4]}
40... bxc3 {[%clk 0:00:19]} 41. bxc3 {[%clk 0:00:30.6]} 41... Ke5 {[%clk
0:00:19.2]} 42. g6 {[%clk 0:00:26.8]} 42... hxg6 {[%clk 0:00:18]} 43. fxg6
{[%clk 0:00:27.7]} 43... Kf6 {[%clk 0:00:18.1]} 44. Kf4 {[%clk 0:00:28.1]} 44...
Kxg6 {[%clk 0:00:16.8]} 45. Ke4 {[%clk 0:00:27.6]} 45... Kf6 {[%clk 0:00:17.7]}
46. Kd4 {[%clk 0:00:27.8]} 46... Ke6 {[%clk 0:00:18.6]} 47. Kxc4 {[%clk
0:00:28.2]} 47... Kd6 {[%clk 0:00:19.5]} 48. Kb4 {[%clk 0:00:28.5]} 48... Kc6
{[%clk 0:00:20.4]} 49. Kxa4 {[%clk 0:00:28.7]} 49... Kb6 {[%clk 0:00:21.3]} 50.
Kb4 {[%clk 0:00:29]} 1-0

[Event "*** Titled Tuesday Blitz"]
[Site "Chess.com"]
[Date "2021.03.09"]
[Round "1"]
[White "mapleaff"]
[Black "PaulfromSPb"]
[Result "0-1"]
[WhiteElo "2387"]
[BlackElo "2710"]
[TimeControl "180+1"]
[EndTime "10:07:21 PST"]
[Termination "PaulfromSPb won on time"]

1. e4 {[%clk 0:02:59.8]} 1... c5 {[%clk 0:02:53]} 2. Nf3 {[%clk 0:02:59.9]} 2...
d6 {[%clk 0:02:46.2]} 3. Bb5+ {[%clk 0:02:57.5]} 3... Nd7 {[%clk 0:02:32.6]} 4.
O-O {[%clk 0:02:56.3]} 4... Nf6 {[%clk 0:02:30.6]} 5. Re1 {[%clk 0:02:49.7]}
5... a6 {[%clk 0:02:12.4]} 6. Bd3 {[%clk 0:02:45.1]} 6... b5 {[%clk 0:02:10.2]}
7. c3 {[%clk 0:02:44]} 7... Bb7 {[%clk 0:02:08.6]} 8. Bc2 {[%clk 0:02:42.2]}
8... e5 {[%clk 0:02:06.3]} 9. d4 {[%clk 0:02:40.4]} 9... Be7 {[%clk 0:02:06.4]}
10. d5 {[%clk 0:02:35.5]} 10... O-O {[%clk 0:01:59.9]} 11. Nbd2 {[%clk
0:02:35.4]} 11... c4 {[%clk 0:01:52.2]} 12. Nf1 {[%clk 0:02:34.7]} 12... Nc5
{[%clk 0:01:51.6]} 13. Ng3 {[%clk 0:02:33.1]} 13... g6 {[%clk 0:01:39.1]} 14.
Bh6 {[%clk 0:02:31]} 14... Re8 {[%clk 0:01:30.8]} 15. h3 {[%clk 0:02:31]} 15...
Rc8 {[%clk 0:01:26]} 16. Qd2 {[%clk 0:02:24.1]} 16... a5 {[%clk 0:01:24.8]} 17.
Nf5 {[%clk 0:01:56.1]} 17... Bf8 {[%clk 0:01:16.6]} 18. Bxf8 {[%clk 0:01:41.9]}
18... Rxf8 {[%clk 0:01:17.5]} 19. Qg5 {[%clk 0:01:10]} 19... Kh8 {[%clk
0:01:01.7]} 20. Nh6 {[%clk 0:01:02.3]} 20... Nh5 {[%clk 0:00:57.5]} 21. Qxd8
{[%clk 0:00:45.7]} 21... Rcxd8 {[%clk 0:00:58.4]} 22. g3 {[%clk 0:00:40.9]}
22... b4 {[%clk 0:00:53.8]} 23. Nd2 {[%clk 0:00:30]} 23... Ba6 {[%clk
0:00:52.6]} 24. Ng4 {[%clk 0:00:24.9]} 24... bxc3 {[%clk 0:00:47.3]} 25. bxc3
{[%clk 0:00:24.6]} 25... Rb8 {[%clk 0:00:47.8]} 26. Rab1 {[%clk 0:00:23.4]}
26... Nd3 {[%clk 0:00:46.4]} 27. Bxd3 {[%clk 0:00:19.1]} 27... cxd3 {[%clk
0:00:47.3]} 28. Ne3 {[%clk 0:00:18.1]} 28... Nf6 {[%clk 0:00:45.1]} 29. Nec4
{[%clk 0:00:17.4]} 29... Bxc4 {[%clk 0:00:43.1]} 30. Nxc4 {[%clk 0:00:18.3]}
30... Rxb1 {[%clk 0:00:41.4]} 31. Rxb1 {[%clk 0:00:19.2]} 31... Nxe4 {[%clk
0:00:42]} 32. Re1 {[%clk 0:00:16.3]} 32... Nxc3 {[%clk 0:00:40.6]} 33. Re3
{[%clk 0:00:12.3]} 33... Rc8 {[%clk 0:00:38.2]} 34. Nxd6 {[%clk 0:00:10.6]}
34... d2 {[%clk 0:00:37.9]} 35. Rd3 {[%clk 0:00:07.7]} 35... Rc5 {[%clk
0:00:27.8]} 36. Nxf7+ {[%clk 0:00:06.3]} 36... Kg7 {[%clk 0:00:26.8]} 37. Nxe5
{[%clk 0:00:05.6]} 37... Rxd5 {[%clk 0:00:27]} 38. Rxd5 {[%clk 0:00:01.2]} 38...
Nxd5 {[%clk 0:00:27.9]} 39. Nc4 {[%clk 0:00:01.6]} 39... d1=Q+ {[%clk
0:00:27.7]} 0-1

[Event "*** Titled Tuesday Blitz"]
[Site "Chess.com"]
[Date "2021.03.09"]
[Round "1"]
[White "Andrii_Prydun"]
[Black "Mikhail_Golubev"]
[Result "0-1"]
[WhiteElo "2285"]
[BlackElo "2589"]
[TimeControl "180+1"]
[EndTime "10:07:21 PST"]
[Termination "Mikhail_Golubev won on time"]

1. d4 {[%clk 0:02:50.7]} 1... Nf6 {[%clk 0:02:59.1]} 2. Nc3 {[%clk 0:02:46.3]}
2... d5 {[%clk 0:02:57]} 3. Bf4 {[%clk 0:02:42.7]} 3... c5 {[%clk 0:02:54.7]} 4.
e3 {[%clk 0:02:41.4]} 4... cxd4 {[%clk 0:02:43]} 5. exd4 {[%clk 0:02:40.8]} 5...
a6 {[%clk 0:02:42.6]} 6. Bd3 {[%clk 0:02:35.6]} 6... Nc6 {[%clk 0:02:39.8]} 7.
Nge2 {[%clk 0:02:32.9]} 7... g6 {[%clk 0:02:38.2]} 8. O-O {[%clk 0:02:32.1]}
8... Bg7 {[%clk 0:02:38.1]} 9. Re1 {[%clk 0:02:25.1]} 9... O-O {[%clk
0:02:35.2]} 10. Qd2 {[%clk 0:02:13.8]} 10... Re8 {[%clk 0:02:35.1]} 11. Rad1
{[%clk 0:02:06.2]} 11... b5 {[%clk 0:02:21.2]} 12. a3 {[%clk 0:02:03.2]} 12...
Bb7 {[%clk 0:02:15.3]} 13. h3 {[%clk 0:01:48.6]} 13... Rc8 {[%clk 0:02:13.7]}
14. Na2 {[%clk 0:01:28.4]} 14... Nd7 {[%clk 0:02:05.1]} 15. c3 {[%clk 0:01:25]}
15... Na5 {[%clk 0:01:30.2]} 16. Bh6 {[%clk 0:01:17.4]} 16... Bh8 {[%clk
0:01:22]} 17. Ng3 {[%clk 0:00:55.7]} 17... e5 {[%clk 0:01:09.9]} 18. Nb4 {[%clk
0:00:46.8]} 18... exd4 {[%clk 0:00:57]} 19. cxd4 {[%clk 0:00:45.6]} 19... Nb3
{[%clk 0:00:48.7]} 20. Qg5 {[%clk 0:00:42]} 20... Rxe1+ {[%clk 0:00:44.2]} 21.
Rxe1 {[%clk 0:00:38.7]} 21... Nxd4 {[%clk 0:00:39.3]} 22. Qe7 {[%clk 0:00:31.6]}
22... Qxe7 {[%clk 0:00:34.4]} 23. Rxe7 {[%clk 0:00:30.8]} 23... Nc5 {[%clk
0:00:34.2]} 24. Bb1 {[%clk 0:00:26.5]} 24... Bf6 {[%clk 0:00:31.5]} 25. Re1
{[%clk 0:00:24.9]} 25... a5 {[%clk 0:00:30.5]} 26. Nc2 {[%clk 0:00:24.4]} 26...
Nxc2 {[%clk 0:00:26.9]} 27. Bxc2 {[%clk 0:00:25.3]} 27... Ne6 {[%clk 0:00:26.7]}
28. Bb3 {[%clk 0:00:24.8]} 28... Bxb2 {[%clk 0:00:25.3]} 29. a4 {[%clk
0:00:24.5]} 29... Nc5 {[%clk 0:00:22.8]} 30. Ba2 {[%clk 0:00:23.5]} 30... Nxa4
{[%clk 0:00:19.6]} 31. Re7 {[%clk 0:00:19.9]} 31... Bc6 {[%clk 0:00:19.2]} 32.
Ne2 {[%clk 0:00:14.4]} 32... Nc3 {[%clk 0:00:16.8]} 33. Nxc3 {[%clk 0:00:08.1]}
33... Bxc3 {[%clk 0:00:16.6]} 34. Bf4 {[%clk 0:00:07.2]} 34... a4 {[%clk
0:00:14.6]} 35. Bb1 {[%clk 0:00:05.4]} 35... b4 {[%clk 0:00:13.6]} 0-1

[Event "*** Titled Tuesday Blitz"]
[Site "Chess.com"]
[Date "2021.03.09"]
[Round "1"]
[White "vovachesss"]
[Black "ErikRonka"]
[Result "1/2-1/2"]
[WhiteElo "2712"]
[BlackElo "2401"]
[TimeControl "180+1"]
[EndTime "10:07:23 PST"]
[Termination "Game drawn - insufficient material"]

1. d4 {[%clk 0:02:55]} 1... d5 {[%clk 0:02:59.6]} 2. Bf4 {[%clk 0:02:54.5]} 2...
c5 {[%clk 0:02:59.3]} 3. dxc5 {[%clk 0:02:49.5]} 3... Nc6 {[%clk 0:02:55.2]} 4.
e3 {[%clk 0:02:46.7]} 4... e5 {[%clk 0:02:51.6]} 5. Bg3 {[%clk 0:02:47.3]} 5...
Bxc5 {[%clk 0:02:48.1]} 6. Nf3 {[%clk 0:02:47.7]} 6... f6 {[%clk 0:02:38.5]} 7.
Nbd2 {[%clk 0:02:42.3]} 7... Nge7 {[%clk 0:02:36.5]} 8. c3 {[%clk 0:02:39.9]}
8... O-O {[%clk 0:02:34.6]} 9. e4 {[%clk 0:02:33]} 9... Be6 {[%clk 0:02:23]} 10.
Bd3 {[%clk 0:02:30.9]} 10... d4 {[%clk 0:02:13.5]} 11. Qe2 {[%clk 0:02:25.9]}
11... dxc3 {[%clk 0:02:12]} 12. bxc3 {[%clk 0:02:26.8]} 12... Bf7 {[%clk
0:01:55]} 13. O-O {[%clk 0:02:26.5]} 13... Qc7 {[%clk 0:01:54.4]} 14. Bc4 {[%clk
0:02:23.5]} 14... Na5 {[%clk 0:01:43.3]} 15. Bxf7+ {[%clk 0:02:20.7]} 15... Rxf7
{[%clk 0:01:44.2]} 16. Nb3 {[%clk 0:02:21.3]} 16... Bb6 {[%clk 0:01:41.7]} 17.
Rac1 {[%clk 0:02:21]} 17... Qc4 {[%clk 0:01:24.2]} 18. Qc2 {[%clk 0:02:18.8]}
18... Rff8 {[%clk 0:01:21.1]} 19. Nfd2 {[%clk 0:02:16.9]} 19... Qc6 {[%clk
0:01:17.3]} 20. Nxa5 {[%clk 0:02:13.4]} 20... Bxa5 {[%clk 0:01:18.2]} 21. Nb3
{[%clk 0:02:14.2]} 21... Bb6 {[%clk 0:01:17.4]} 22. Rfd1 {[%clk 0:02:14.4]}
22... Rfd8 {[%clk 0:01:16.4]} 23. c4 {[%clk 0:02:15]} 23... Rxd1+ {[%clk
0:01:14.8]} 24. Rxd1 {[%clk 0:02:15.9]} 24... Rd8 {[%clk 0:01:14.8]} 25. Rxd8+
{[%clk 0:01:47.4]} 25... Bxd8 {[%clk 0:01:15.7]} 26. c5 {[%clk 0:01:47.8]} 26...
Qe6 {[%clk 0:01:11.5]} 27. Qd3 {[%clk 0:01:44.8]} 27... Nc6 {[%clk 0:01:10.1]}
28. f4 {[%clk 0:01:35.9]} 28... exf4 {[%clk 0:01:03]} 29. Bxf4 {[%clk 0:01:36]}
29... Be7 {[%clk 0:01:03.5]} 30. Kf2 {[%clk 0:01:32.1]} 30... h6 {[%clk
0:00:50.7]} 31. Kf3 {[%clk 0:01:32]} 31... Kf7 {[%clk 0:00:46.1]} 32. g4 {[%clk
0:01:31.7]} 32... a5 {[%clk 0:00:40]} 33. a4 {[%clk 0:01:28.5]} 33... h5 {[%clk
0:00:32.1]} 34. h3 {[%clk 0:01:28.2]} 34... hxg4+ {[%clk 0:00:31.2]} 35. hxg4
{[%clk 0:01:29.1]} 35... Nb4 {[%clk 0:00:27.1]} 36. Qc3 {[%clk 0:01:24.6]} 36...
Qa6 {[%clk 0:00:16.9]} 37. Nd2 {[%clk 0:01:06.2]} 37... Qd3+ {[%clk 0:00:10.1]}
38. Qxd3 {[%clk 0:01:06.4]} 38... Nxd3 {[%clk 0:00:11]} 39. Nc4 {[%clk
0:01:07.1]} 39... Nxc5 {[%clk 0:00:10.6]} 40. Nxa5 {[%clk 0:01:07.4]} 40... Nxa4
{[%clk 0:00:10.8]} 41. Nxb7 {[%clk 0:01:07.7]} 41... Nc5 {[%clk 0:00:10.6]} 42.
Na5 {[%clk 0:01:04.8]} 42... Nd7 {[%clk 0:00:10.5]} 43. Nc6 {[%clk 0:01:04.4]}
43... Nf8 {[%clk 0:00:10.9]} 44. Be3 {[%clk 0:01:03.8]} 44... Ne6 {[%clk
0:00:10.9]} 45. Bd2 {[%clk 0:01:01.3]} 45... Bf8 {[%clk 0:00:11.2]} 46. Bc3
{[%clk 0:01:01.3]} 46... Be7 {[%clk 0:00:11.6]} 47. e5 {[%clk 0:01:01.1]} 47...
fxe5 {[%clk 0:00:10.6]} 48. Nxe5+ {[%clk 0:01:02]} 48... Kg8 {[%clk 0:00:10.6]}
49. Bd2 {[%clk 0:00:59.2]} 49... Bf6 {[%clk 0:00:10.6]} 50. Nc6 {[%clk
0:00:58.9]} 50... Kf7 {[%clk 0:00:10.6]} 51. Ke4 {[%clk 0:00:59.2]} 51... Ng5+
{[%clk 0:00:09.8]} 52. Kf5 {[%clk 0:00:56.5]} 52... Ne6 {[%clk 0:00:06.1]} 53.
g5 {[%clk 0:00:54.2]} 53... Nxg5 {[%clk 0:00:04.1]} 54. Bxg5 {[%clk 0:00:51.8]}
54... Bxg5 {[%clk 0:00:04]} 55. Kxg5 {[%clk 0:00:52]} 55... g6 {[%clk
0:00:04.9]} 56. Ne5+ {[%clk 0:00:51.8]} 56... Ke6 {[%clk 0:00:05.4]} 57. Nxg6
{[%clk 0:00:52.7]} 1/2-1/2

[Event "*** Titled Tuesday Blitz"]
[Site "Chess.com"]
[Date "2021.03.09"]
[Round "1"]
[White "Andrakhanova"]
[Black "vlad_Sid"]
[Result "0-1"]
[WhiteElo "2269"]
[BlackElo "2573"]
[TimeControl "180+1"]
[EndTime "10:07:23 PST"]
[Termination "vlad_Sid won by resignation"]

1. c4 {[%clk 0:02:58.2]} 1... c5 {[%clk 0:02:40.2]} 2. Nc3 {[%clk 0:02:52.1]}
2... Nc6 {[%clk 0:02:37.9]} 3. g3 {[%clk 0:02:51.2]} 3... e6 {[%clk 0:02:35.6]}
4. Bg2 {[%clk 0:02:49]} 4... Nf6 {[%clk 0:02:36.1]} 5. Nf3 {[%clk 0:02:43.2]}
5... b6 {[%clk 0:02:24.6]} 6. d4 {[%clk 0:02:42.4]} 6... cxd4 {[%clk 0:02:11.7]}
7. Nxd4 {[%clk 0:02:43.3]} 7... Bb7 {[%clk 0:02:11.8]} 8. O-O {[%clk 0:02:40.1]}
8... Be7 {[%clk 0:02:06.1]} 9. b3 {[%clk 0:02:32.4]} 9... O-O {[%clk 0:01:56.5]}
10. Bb2 {[%clk 0:02:32.1]} 10... a6 {[%clk 0:01:55.5]} 11. Qd2 {[%clk
0:02:26.7]} 11... Qc7 {[%clk 0:01:37.8]} 12. Rad1 {[%clk 0:02:18.1]} 12... Nxd4
{[%clk 0:01:33.2]} 13. Qxd4 {[%clk 0:02:19]} 13... Bxg2 {[%clk 0:01:32.8]} 14.
Kxg2 {[%clk 0:02:19.9]} 14... Rfd8 {[%clk 0:01:31]} 15. e4 {[%clk 0:02:19.5]}
15... d6 {[%clk 0:01:26.7]} 16. h3 {[%clk 0:02:17.6]} 16... Bf8 {[%clk
0:01:25.2]} 17. Qe3 {[%clk 0:02:16.4]} 17... Nd7 {[%clk 0:01:24.6]} 18. Rd2
{[%clk 0:02:08.2]} 18... Qb7 {[%clk 0:01:20.4]} 19. Rfd1 {[%clk 0:02:05.7]}
19... b5 {[%clk 0:01:19.3]} 20. Qe2 {[%clk 0:01:40.3]} 20... Nc5 {[%clk
0:01:02.1]} 21. f3 {[%clk 0:01:32.2]} 21... b4 {[%clk 0:00:52.4]} 22. Nb1 {[%clk
0:01:27.8]} 22... Qb6 {[%clk 0:00:44.9]} 23. Rc2 {[%clk 0:01:05.6]} 23... a5
{[%clk 0:00:42.1]} 24. Nd2 {[%clk 0:01:03.8]} 24... a4 {[%clk 0:00:41.5]} 25.
Bd4 {[%clk 0:01:01.2]} 25... Qc6 {[%clk 0:00:33.3]} 26. Qe3 {[%clk 0:00:49.3]}
26... axb3 {[%clk 0:00:29.5]} 27. axb3 {[%clk 0:00:50.2]} 27... Ra3 {[%clk
0:00:25.4]} 28. Bxc5 {[%clk 0:00:46.7]} 28... dxc5 {[%clk 0:00:26.3]} 29. Rcc1
{[%clk 0:00:42.7]} 29... Ra2 {[%clk 0:00:25.8]} 30. Kg1 {[%clk 0:00:39.2]} 30...
Qd6 {[%clk 0:00:25.3]} 31. Nf1 {[%clk 0:00:35.7]} 31... Qxd1 {[%clk 0:00:22.7]}
32. Rxd1 {[%clk 0:00:36.6]} 32... Rxd1 {[%clk 0:00:23.3]} 33. f4 {[%clk
0:00:22.1]} 33... Raa1 {[%clk 0:00:22.6]} 34. Qe2 {[%clk 0:00:21.3]} 34... Rxf1+
{[%clk 0:00:21.8]} 35. Qxf1 {[%clk 0:00:22.2]} 35... Rxf1+ {[%clk 0:00:22.5]}
36. Kxf1 {[%clk 0:00:23.1]} 36... f6 {[%clk 0:00:20.6]} 37. f5 {[%clk 0:00:20]}
37... exf5 {[%clk 0:00:15.8]} 38. exf5 {[%clk 0:00:20.9]} 38... g6 {[%clk
0:00:16.4]} 39. g4 {[%clk 0:00:20.3]} 39... gxf5 {[%clk 0:00:16.6]} 40. gxf5
{[%clk 0:00:21.2]} 40... Kg7 {[%clk 0:00:16.8]} 41. Kg2 {[%clk 0:00:21.8]} 41...
Kh6 {[%clk 0:00:17]} 42. Kf3 {[%clk 0:00:19.6]} 42... Kg5 {[%clk 0:00:16.9]} 43.
Ke4 {[%clk 0:00:19.8]} 43... h5 {[%clk 0:00:15.8]} 0-1

[Event "*** Titled Tuesday Blitz"]
[Site "Chess.com"]
[Date "2021.03.09"]
[Round "1"]
[White "mary-sanna"]
[Black "adriangschnitzer"]
[Result "0-1"]
[WhiteElo "2063"]
[BlackElo "2502"]
[TimeControl "180+1"]
[EndTime "10:07:23 PST"]
[Termination "adriangschnitzer won on time"]

1. d4 {[%clk 0:03:00.9]} 1... Nf6 {[%clk 0:02:59.3]} 2. Bf4 {[%clk 0:03:00.1]}
2... c5 {[%clk 0:02:58.1]} 3. d5 {[%clk 0:02:59.9]} 3... d6 {[%clk 0:02:57.9]}
4. Nc3 {[%clk 0:03:00.4]} 4... e5 {[%clk 0:02:57.6]} 5. Bg5 {[%clk 0:02:36.1]}
5... h6 {[%clk 0:02:54.3]} 6. Bh4 {[%clk 0:02:35.8]} 6... g5 {[%clk 0:02:51.3]}
7. Bg3 {[%clk 0:02:35.9]} 7... Bf5 {[%clk 0:02:39.6]} 8. h4 {[%clk 0:02:29.5]}
8... Bg7 {[%clk 0:02:37.1]} 9. hxg5 {[%clk 0:02:28.2]} 9... hxg5 {[%clk
0:02:38]} 10. Rxh8+ {[%clk 0:02:27.9]} 10... Bxh8 {[%clk 0:02:37.8]} 11. Qd2
{[%clk 0:02:28.1]} 11... Nh5 {[%clk 0:02:24]} 12. e4 {[%clk 0:02:21.8]} 12...
Nxg3 {[%clk 0:02:21.1]} 13. fxg3 {[%clk 0:02:21.3]} 13... Bg6 {[%clk 0:02:12]}
14. Nf3 {[%clk 0:02:14.9]} 14... Bf6 {[%clk 0:02:10.7]} 15. Bb5+ {[%clk
0:02:00.5]} 15... Nd7 {[%clk 0:02:10.1]} 16. a4 {[%clk 0:01:59.9]} 16... a6
{[%clk 0:02:09.1]} 17. Bxd7+ {[%clk 0:01:41.5]} 17... Qxd7 {[%clk 0:02:04.2]}
18. O-O-O {[%clk 0:01:30.1]} 18... Qg4 {[%clk 0:01:59.2]} 19. Qe1 {[%clk
0:01:22.7]} 19... b5 {[%clk 0:01:53.1]} 20. axb5 {[%clk 0:01:16.2]} 20... axb5
{[%clk 0:01:54]} 21. Nxb5 {[%clk 0:01:12.9]} 21... Ke7 {[%clk 0:01:47.4]} 22.
Nc3 {[%clk 0:01:07.9]} 22... Qh5 {[%clk 0:01:24.5]} 23. Kd2 {[%clk 0:01:00.8]}
23... g4 {[%clk 0:01:13.9]} 24. Ng1 {[%clk 0:00:44.1]} 24... Bg5+ {[%clk
0:01:03.6]} 25. Ke2 {[%clk 0:00:42.8]} 25... f5 {[%clk 0:00:57.7]} 26. Kf2
{[%clk 0:00:39]} 26... fxe4 {[%clk 0:00:44.9]} 27. Ra1 {[%clk 0:00:25.4]} 27...
Rf8+ {[%clk 0:00:27.1]} 28. Ke2 {[%clk 0:00:25.4]} 28... Qh2 {[%clk 0:00:14.4]}
29. Ra7+ {[%clk 0:00:24.3]} 29... Ke8 {[%clk 0:00:14.6]} 30. Nb5 {[%clk
0:00:20.7]} 30... Qxg2+ {[%clk 0:00:12.9]} 31. Kd1 {[%clk 0:00:20.8]} 31... Rf1
{[%clk 0:00:09.7]} 32. Nxd6+ {[%clk 0:00:20.5]} 32... Kf8 {[%clk 0:00:08.5]} 33.
Ra8+ {[%clk 0:00:03.5]} 33... Kg7 {[%clk 0:00:07.6]} 34. Ra7+ {[%clk 0:00:03]}
34... Kh6 {[%clk 0:00:06.4]} 0-1

[Event "*** Titled Tuesday Blitz"]
[Site "Chess.com"]
[Date "2021.03.09"]
[Round "1"]
[White "ENajer77"]
[Black "ARTHURMOTIVATOR"]
[Result "0-1"]
[WhiteElo "2612"]
[BlackElo "2342"]
[TimeControl "180+1"]
[EndTime "10:07:24 PST"]
[Termination "ARTHURMOTIVATOR won on time"]

1. d4 {[%clk 0:02:59]} 1... Nf6 {[%clk 0:02:58.9]} 2. Bg5 {[%clk 0:02:57]} 2...
Ne4 {[%clk 0:02:56.6]} 3. Bh4 {[%clk 0:02:55.6]} 3... c6 {[%clk 0:02:55.6]} 4.
Nd2 {[%clk 0:02:52.6]} 4... Nxd2 {[%clk 0:02:48.2]} 5. Qxd2 {[%clk 0:02:52.3]}
5... d5 {[%clk 0:02:49.1]} 6. e3 {[%clk 0:02:46.6]} 6... Bf5 {[%clk 0:02:48.3]}
7. Bd3 {[%clk 0:02:44]} 7... Bxd3 {[%clk 0:02:46.7]} 8. cxd3 {[%clk 0:02:44.6]}
8... Nd7 {[%clk 0:02:41.1]} 9. Nf3 {[%clk 0:02:44.2]} 9... f6 {[%clk 0:02:35.9]}
10. O-O-O {[%clk 0:02:36]} 10... e6 {[%clk 0:02:28.8]} 11. e4 {[%clk 0:02:34.7]}
11... Qb6 {[%clk 0:02:22.5]} 12. Kb1 {[%clk 0:02:30.4]} 12... Bb4 {[%clk
0:02:14.9]} 13. Qe2 {[%clk 0:02:19.9]} 13... O-O {[%clk 0:01:55.7]} 14. Bg3
{[%clk 0:02:05.8]} 14... Rfe8 {[%clk 0:01:51.7]} 15. h4 {[%clk 0:02:05]} 15...
a5 {[%clk 0:01:48.5]} 16. h5 {[%clk 0:02:04.6]} 16... a4 {[%clk 0:01:43.2]} 17.
h6 {[%clk 0:02:04.4]} 17... g6 {[%clk 0:01:41.6]} 18. Bf4 {[%clk 0:02:01.4]}
18... a3 {[%clk 0:01:33.6]} 19. b3 {[%clk 0:02:00.8]} 19... c5 {[%clk
0:01:33.8]} 20. Be3 {[%clk 0:01:56.5]} 20... Qa5 {[%clk 0:01:26.9]} 21. Rc1
{[%clk 0:01:43.6]} 21... Rac8 {[%clk 0:01:21.4]} 22. dxc5 {[%clk 0:01:29.5]}
22... Nxc5 {[%clk 0:01:13.5]} 23. e5 {[%clk 0:01:19.2]} 23... f5 {[%clk
0:01:08.5]} 24. Rc2 {[%clk 0:01:12.6]} 24... Na6 {[%clk 0:01:00.4]} 25. Rxc8
{[%clk 0:00:55.7]} 25... Rxc8 {[%clk 0:00:58.6]} 26. Ng5 {[%clk 0:00:55.8]}
26... Rc6 {[%clk 0:00:53.2]} 27. Rc1 {[%clk 0:00:54.4]} 27... Bc3 {[%clk
0:00:53.1]} 28. f4 {[%clk 0:00:37.3]} 28... d4 {[%clk 0:00:51.7]} 29. Bf2 {[%clk
0:00:33.7]} 29... Nb4 {[%clk 0:00:49.1]} 30. Nf3 {[%clk 0:00:29.6]} 30... Qd5
{[%clk 0:00:42.5]} 31. Bh4 {[%clk 0:00:12.7]} 31... Rb6 {[%clk 0:00:38.9]} 32.
Qd1 {[%clk 0:00:05.5]} 32... Nc6 {[%clk 0:00:25.3]} 33. Be1 {[%clk 0:00:03]}
33... Bxe1 {[%clk 0:00:20.2]} 34. Nxe1 {[%clk 0:00:02.7]} 34... Qb5 {[%clk
0:00:14.5]} 35. Rc4 {[%clk 0:00:02.1]} 35... Qd5 {[%clk 0:00:14.4]} 36. Rc1
{[%clk 0:00:01.7]} 36... Kf7 {[%clk 0:00:13.2]} 0-1